[Event "9th Holuj-Radzikowska 2019"]
[Site "Wroclaw"]
[Date "2019.12.12"]
[Round "6"]
[White "Zawadzka, Jolanta"]
[Black "Badelka, Olga"]
[Result "1/2-1/2"]
[ECO "B32"]
[WhiteElo "2400"]
[BlackElo "2399"]
[Annotator "ChessBase"]
[PlyCount "105"]
[EventDate "2019.12.06"]
[EventType "team-tourn"]
[EventCountry "POL"]
[SourceTitle "playchess.com"]
[Source "ChessBase"]
[SourceQuality "1"]
[TimeControl "40/5400+30:1800+30"]

1. e4 {[%emt 0:00:00]} c5 {[%emt 0:00:00]} 2. Nf3 {[%emt 0:00:00]} Nc6 {[%emt 0:00:00]} 3. d4 {[%emt 0:00:00]} cxd4 {[%emt 0:00:00]} 4. Nxd4 {[%emt 0:00:00]} e5 {[%emt 0:00:00]} 5. Nb5 {[%emt 0:00:00]} d6 {[%emt 0:00:01]} 6. c4 {[%emt 0:00:06]} Be7 {[%emt 0:00:11]} 7. N1c3 {[%emt 0:00:22]} a6 {[%emt 0:00:08]} 8. Na3 {[%emt 0:00:04]} f5 {[%emt 0:00:07]} 9. exf5 {[%emt 0:00:30]} Bxf5 {[%emt 0:00:06]} 10. Bd3 {[%emt 0:00:21]} Be6 {[%emt 0:00:09]} 11. O-O {[%emt 0:00:25]} Nf6 {[%emt 0:00:17]} 12. Nc2 {[%emt 0:00:25]} O-O {[%emt 0:00:34]} 13. Nd5 {[%emt 0:00:19]} Rb8 {[%emt 0:09:56]} 14. b3 {[%emt 0:01:08]} Rf7 {[%emt 0:11:55]} 15. Bb2 {[%emt 0:09:42]} Bf8 {[%emt 0:11:58]} 16. Nce3 {[%emt 0:03:20]} Ne7 {[%emt 0:02:43]} 17. Qd2 {[%emt 0:13:18]} Nfxd5 {[%emt 0:04:10]} 18. Nxd5 {[%emt 0:02:38]} Nxd5 19. cxd5 {[%emt 0:00:06]} Bf5 {[%emt 0:01:57]} 20. Bxf5 {[%emt 0:04:37]} Rxf5 {[%emt 0:00:07]} 21. Rac1 {[%emt 0:00:31]} Rf7 {[%emt 0:07:05]} 22. Rc2 {[%emt 0:05:38]} Rc8 {[%emt 0:01:01]} 23. Rfc1 {[%emt 0:09:03]} Rfc7 {[%emt 0:00:33]} 24. Rxc7 {[%emt 0:00:54]} Rxc7 {[%emt 0:00:04]} 25. g3 {[%emt 0:01:04]} Be7 {[%emt 0:06:29]} 26. h4 {[%emt 0:01:02]} Qc8 {[%emt 0:03:28]} 27. Rxc7 {[%emt 0:01:41]} Qxc7 {[%emt 0:00:03]} 28. Qd3 {[%emt 0:02:41]} Qc5 {[%emt 0:02:15]} 29. Bc3 {[%emt 0:05:05]} Bf6 {[%emt 0:05:47]} 30. Bd2 {[%emt 0:02:09]} Be7 {[%emt 0:07:06]} 31. Be3 {[%emt 0:02:56]} Qc8 {[%emt 0:00:12]} 32. Kh2 {[%emt 0:05:45]} g6 {[%emt 0:02:25]} 33. Qe4 {[%emt 0:04:37]} Kg7 {[%emt 0:01:18]} 34. a4 {[%emt 0:01:03]} h5 {[%emt 0:12:04]} 35. Bd2 {[%emt 0:04:57]} Qf5 {[%emt 0:03:31]} 36. Qe3 {[%emt 0:01:26]} Qf7 {[%emt 0:01:01]} 37. Kg1 {[%emt 0:04:29]} Kf8 {[%emt 0:03:35]} 38. Qd3 {[%emt 0:02:38]} Ke8 {[%emt 0:00:47]} 39. b4 {[%emt 0:03:34]} Bd8 {[%emt 0:00:56]} 40. Be3 {[%emt 0:00:00]} Qf5 {[%emt 0:00:00]} 41. Qb3 {[%emt 0:05:54]} g5 {[%emt 0:12:16]} 42. hxg5 {[%emt 0:01:27]} Bxg5 {[%emt 0:00:15]} 43. Bxg5 {[%emt 0:01:41]} Qxg5 {[%emt 0:00:03]} 44. Qc2 {[%emt 0:02:47]} Qg4 {[%emt 0:03:48]} 45. b5 {[%emt 0:01:47]} axb5 {[%emt 0:01:04]} 46. axb5 {[%emt 0:00:05]} h4 {[%emt 0:00:42]} 47. Kg2 {[%emt 0:03:44]} hxg3 {[%emt 0:00:45]} 48. f3 {[%emt 0:02:12]} Qh4 {[%emt 0:04:59]} 49. Qc8+ {[%emt 0:07:32]} Kf7 {[%emt 0:00:13]} 50. Qd7+ {[%emt 0:00:30]} Kg8 {[%emt 0:00:23]} 51. Qe8+ {[%emt 0:00:26]} Kg7 {[%emt 0:00:07]} 52. Qd7+ {[%emt 0:00:04]} Kg8 {[%emt 0:00:04]} 53. Qe8+ {[%emt 0:00:36]} 1/2-1/2

[Event "9th Holuj-Radzikowska 2019"]
[Site "Wroclaw"]
[Date "2019.12.12"]
[Round "6"]
[White "Sliwicka, Alicja"]
[Black "Bulmaga, Irina"]
[Result "0-1"]
[ECO "C47"]
[WhiteElo "2264"]
[BlackElo "2434"]
[Annotator "ChessBase"]
[PlyCount "136"]
[EventDate "2019.12.06"]
[EventType "team-tourn"]
[EventCountry "POL"]
[SourceTitle "playchess.com"]
[Source "ChessBase"]
[SourceQuality "1"]
[TimeControl "40/5400+30:1800+30"]

1. e4 e5 2. Nf3 Nc6 3. Nc3 Nf6 4. d4 exd4 5. Nxd4 Bb4 6. Nxc6 bxc6 7. Bd3 O-O 8. O-O Re8 9. Bg5 h6 10. Bh4 g5 11. Bg3 Bxc3 12. bxc3 Nxe4 13. Qh5 d6 14. f4 Bf5 15. Bxe4 Rxe4 16. Qxh6 Re6 17. Qh5 Qf6 18. fxg5 Qg6 19. Qf3 Be4 20. Qf4 Bxc2 21. Rae1 Rae8 22. Rxe6 Rxe6 23. Re1 Rxe1+ 24. Bxe1 Qe6 25. Bf2 c5 26. h4 Qxa2 27. Qf6 Qe6 28. Qd8+ Kg7 29. h5 Be4 30. h6+ Kh7 31. Qf8 Qg6 32. Be3 Bd5 33. Bd2 a6 34. c4 Bxc4 35. Bc3 Qg8 36. Qe7 Bd5 37. Bg7 Qc8 38. g6+ Kxg6 39. Qf6+ Kh7 40. Qg5 Be4 41. Bc3 Qg8 42. Bg7 Qe8 43. Bc3 Bg6 44. Qf6 Qg8 45. g4 d5 46. Be5 Be4 47. g5 a5 48. Bxc7 a4 49. Bd6 Qg6 50. Bxc5 Qxf6 51. gxf6 Kxh6 52. Kf2 Kg5 53. Bd4 Kf4 54. Bb2 Bd3 55. Ba3 Ke4 56. Ke1 Kd4 57. Kd2 Kc4 58. Bd6 Bf5 59. Be7 d4 60. Bd6 Kb3 61. Be5 d3 62. Kc1 a3 63. Bd4 Ka2 64. Bc3 Bg6 65. Bd2 Kb3 66. Bf4 d2+ 67. Kxd2 Kb2 68. Be5+ Kb1 0-1